[Event "*** SCC Grand Prix: Titled Tuesday Blitz"]
[Site "Chess.com"]
[Date "2020.07.07"]
[Round "6"]
[White "Zurability"]
[Black "Bodnar_Mykola"]
[Result "1/2-1/2"]
[WhiteElo "2595"]
[BlackElo "2455"]
[TimeControl "180+1"]
[EndTime "11:08:10 PDT"]
[Termination "Game drawn - insufficient material"]

1. Nf3 {[%clk 0:03:00.9]} 1... Nf6 {[%clk 0:02:59.7]} 2. g3 {[%clk 0:03:01.3]}
2... b6 {[%clk 0:03:00.2]} 3. Bg2 {[%clk 0:03:01.7]} 3... Bb7 {[%clk 0:03:01.1]}
4. O-O {[%clk 0:03:02]} 4... e6 {[%clk 0:03:02]} 5. c4 {[%clk 0:03:01.7]} 5...
Be7 {[%clk 0:03:02.4]} 6. b3 {[%clk 0:02:57.2]} 6... O-O {[%clk 0:03:01.1]} 7.
Bb2 {[%clk 0:02:57.7]} 7... d5 {[%clk 0:02:52.8]} 8. e3 {[%clk 0:02:54.9]} 8...
c5 {[%clk 0:02:50.9]} 9. Nc3 {[%clk 0:02:53.3]} 9... dxc4 {[%clk 0:02:50.7]} 10.
bxc4 {[%clk 0:02:53]} 10... Nc6 {[%clk 0:02:45.8]} 11. Qe2 {[%clk 0:02:53.2]}
11... a6 {[%clk 0:02:44.6]} 12. Rad1 {[%clk 0:02:52.5]} 12... Qc7 {[%clk
0:02:44.3]} 13. Ne1 {[%clk 0:02:51.2]} 13... Na7 {[%clk 0:02:43.3]} 14. a4
{[%clk 0:02:39.7]} 14... Rab8 {[%clk 0:02:40.1]} 15. f4 {[%clk 0:02:36.8]} 15...
Bc6 {[%clk 0:02:37.5]} 16. g4 {[%clk 0:02:22]} 16... b5 {[%clk 0:02:32.2]} 17.
cxb5 {[%clk 0:02:16.2]} 17... axb5 {[%clk 0:02:33.1]} 18. g5 {[%clk 0:02:07.6]}
18... Nd7 {[%clk 0:02:29.9]} 19. axb5 {[%clk 0:01:50.3]} 19... Nxb5 {[%clk
0:02:28.2]} 20. Ba1 {[%clk 0:01:30.8]} 20... Bxg2 {[%clk 0:02:19]} 21. Nxg2
{[%clk 0:01:31.7]} 21... Nxc3 {[%clk 0:02:17.6]} 22. Bxc3 {[%clk 0:01:31.3]}
22... Nb6 {[%clk 0:01:41.9]} 23. Qg4 {[%clk 0:01:05.4]} 23... Nd5 {[%clk
0:01:40.3]} 24. Ba1 {[%clk 0:01:05.5]} 24... Rb6 {[%clk 0:01:12.9]} 25. f5
{[%clk 0:01:02.7]} 25... exf5 {[%clk 0:01:11]} 26. Rxf5 {[%clk 0:01:03.6]} 26...
Nb4 {[%clk 0:01:07.9]} 27. Rdf1 {[%clk 0:00:50.2]} 27... Bd6 {[%clk 0:00:45.8]}
28. Qh4 {[%clk 0:00:40.8]} 28... Ra6 {[%clk 0:00:36.5]} 29. Bc3 {[%clk
0:00:31.6]} 29... Na2 {[%clk 0:00:27.9]} 30. Bf6 {[%clk 0:00:28.5]} 30... Bxh2+
{[%clk 0:00:20.5]} 31. Qxh2 {[%clk 0:00:20.1]} 31... Qxh2+ {[%clk 0:00:21.4]}
32. Kxh2 {[%clk 0:00:19.9]} 32... gxf6 {[%clk 0:00:22.3]} 33. gxf6 {[%clk
0:00:20.4]} 33... Kh8 {[%clk 0:00:22.7]} 34. Rxc5 {[%clk 0:00:18.3]} 34... Nb4
{[%clk 0:00:22.1]} 35. Rg5 {[%clk 0:00:16.1]} 35... Rg8 {[%clk 0:00:18]} 36.
Rxg8+ {[%clk 0:00:14.2]} 36... Kxg8 {[%clk 0:00:18.9]} 37. e4 {[%clk 0:00:14.8]}
37... Nd3 {[%clk 0:00:18]} 38. Ne3 {[%clk 0:00:12.7]} 38... Kf8 {[%clk
0:00:17.1]} 39. Nd5 {[%clk 0:00:12.9]} 39... Ra2 {[%clk 0:00:16.9]} 40. Kg3
{[%clk 0:00:07.6]} 40... Rxd2 {[%clk 0:00:16.8]} 41. Rh1 {[%clk 0:00:08.2]}
41... Ne5 {[%clk 0:00:16.3]} 42. Rxh7 {[%clk 0:00:07.3]} 42... Rd3+ {[%clk
0:00:16.7]} 43. Kg2 {[%clk 0:00:06.9]} 43... Rd2+ {[%clk 0:00:16.7]} 44. Kf1
{[%clk 0:00:06.4]} 44... Ke8 {[%clk 0:00:17]} 45. Rh5 {[%clk 0:00:05]} 45... Ng6
{[%clk 0:00:16.5]} 46. Rh3 {[%clk 0:00:04.6]} 46... Kd7 {[%clk 0:00:16.5]} 47.
Ra3 {[%clk 0:00:04.5]} 47... Ke6 {[%clk 0:00:16.4]} 48. Ra6+ {[%clk 0:00:04.3]}
48... Ke5 {[%clk 0:00:16.8]} 49. Nc3 {[%clk 0:00:04.3]} 49... Rc2 {[%clk
0:00:16.5]} 50. Ne2 {[%clk 0:00:03.4]} 50... Kxe4 {[%clk 0:00:16]} 51. Ra7
{[%clk 0:00:04]} 51... Ne5 {[%clk 0:00:15.9]} 52. Ra3 {[%clk 0:00:02.7]} 52...
Rb2 {[%clk 0:00:14.9]} 53. Ra4+ {[%clk 0:00:02.6]} 53... Kd5 {[%clk 0:00:15.2]}
54. Ra3 {[%clk 0:00:02.4]} 54... Ke6 {[%clk 0:00:15.5]} 55. Ra6+ {[%clk
0:00:02.2]} 55... Kf5 {[%clk 0:00:15.9]} 56. Nd4+ {[%clk 0:00:02.7]} 56... Ke4
{[%clk 0:00:16]} 57. Ne2 {[%clk 0:00:03.4]} 57... Rb1+ {[%clk 0:00:16.1]} 58.
Kg2 {[%clk 0:00:02.7]} 58... Rb2 {[%clk 0:00:15.8]} 59. Kf1 {[%clk 0:00:03.1]}
59... Nf3 {[%clk 0:00:15.6]} 60. Ng3+ {[%clk 0:00:02.9]} 60... Kf4 {[%clk
0:00:15.5]} 61. Nh5+ {[%clk 0:00:03.2]} 61... Kg4 {[%clk 0:00:14.2]} 62. Ng7
{[%clk 0:00:03]} 62... Kg3 {[%clk 0:00:14.1]} 63. Nf5+ {[%clk 0:00:03.4]} 63...
Kf4 {[%clk 0:00:14.2]} 64. Nd6 {[%clk 0:00:03.8]} 64... Rb1+ {[%clk 0:00:14.5]}
65. Kf2 {[%clk 0:00:03.7]} 65... Rb2+ {[%clk 0:00:14.9]} 66. Kf1 {[%clk
0:00:04.2]} 66... Nd2+ {[%clk 0:00:14.2]} 67. Ke1 {[%clk 0:00:03.7]} 67... Ke3
{[%clk 0:00:14]} 68. Kd1 {[%clk 0:00:03.7]} 68... Rb1+ {[%clk 0:00:13.1]} 69.
Kc2 {[%clk 0:00:03.8]} 69... Rf1 {[%clk 0:00:07]} 70. Nxf7 {[%clk 0:00:03.6]}
70... Ne4 {[%clk 0:00:05.9]} 71. Ra3+ {[%clk 0:00:02.3]} 71... Kd4 {[%clk
0:00:05.6]} 72. Ra4+ {[%clk 0:00:02.2]} 72... Kd5 {[%clk 0:00:06]} 73. Ra5+
{[%clk 0:00:01.2]} 73... Nc5 {[%clk 0:00:06.3]} 74. Nd8 {[%clk 0:00:01.4]} 74...
Rxf6 {[%clk 0:00:05.4]} 75. Nb7 {[%clk 0:00:01.6]} 75... Rf2+ {[%clk 0:00:05.9]}
76. Kc1 {[%clk 0:00:01.6]} 76... Kc6 {[%clk 0:00:06.8]} 77. Rxc5+ {[%clk
0:00:01.8]} 77... Kb6 {[%clk 0:00:06.9]} 78. Rc2 {[%clk 0:00:02.7]} 78... Rxc2+
{[%clk 0:00:06.4]} 79. Kxc2 {[%clk 0:00:02.9]} 1/2-1/2

[Event "*** SCC Grand Prix: Titled Tuesday Blitz"]
[Site "Chess.com"]
[Date "2020.07.07"]
[Round "6"]
[White "Onischuk_V"]
[Black "FabianoCaruana"]
[Result "1/2-1/2"]
[WhiteElo "2897"]
[BlackElo "2984"]
[TimeControl "180+1"]
[EndTime "11:08:11 PDT"]
[Termination "Game drawn - insufficient material"]

1. e4 {[%clk 0:02:59.9]} 1... e5 {[%clk 0:03:00.2]} 2. Nf3 {[%clk 0:02:59.7]}
2... Nf6 {[%clk 0:03:00.3]} 3. Nxe5 {[%clk 0:02:58.5]} 3... d6 {[%clk
0:03:00.1]} 4. Nf3 {[%clk 0:02:59.2]} 4... Nxe4 {[%clk 0:03:00.4]} 5. Qe2 {[%clk
0:02:59.9]} 5... Qe7 {[%clk 0:03:00.2]} 6. d3 {[%clk 0:03:00.4]} 6... Nf6 {[%clk
0:03:00.9]} 7. Bg5 {[%clk 0:03:00.9]} 7... Qxe2+ {[%clk 0:02:54.4]} 8. Bxe2
{[%clk 0:03:00.7]} 8... Be7 {[%clk 0:02:53.3]} 9. Nc3 {[%clk 0:03:01.1]} 9...
Nc6 {[%clk 0:02:47.5]} 10. O-O-O {[%clk 0:03:00.7]} 10... O-O {[%clk 0:02:43.4]}
11. h3 {[%clk 0:02:58.7]} 11... h6 {[%clk 0:02:43.6]} 12. Bd2 {[%clk 0:02:58.4]}
12... Be6 {[%clk 0:02:41.6]} 13. g4 {[%clk 0:02:38]} 13... Nd5 {[%clk
0:02:39.8]} 14. Rhg1 {[%clk 0:02:34]} 14... Nxc3 {[%clk 0:02:25.3]} 15. Bxc3
{[%clk 0:02:33.8]} 15... a5 {[%clk 0:02:24]} 16. a4 {[%clk 0:02:17.4]} 16... Nb4
{[%clk 0:02:22.2]} 17. Kb1 {[%clk 0:02:12.4]} 17... c5 {[%clk 0:02:16.7]} 18. g5
{[%clk 0:02:10.8]} 18... h5 {[%clk 0:02:11.7]} 19. g6 {[%clk 0:01:59.7]} 19...
Nd5 {[%clk 0:02:10.4]} 20. Bd2 {[%clk 0:01:53.7]} 20... fxg6 {[%clk 0:01:42.2]}
21. Rxg6 {[%clk 0:01:52.7]} 21... Bxh3 {[%clk 0:01:42.7]} 22. Rdg1 {[%clk
0:01:09.7]} 22... Bg4 {[%clk 0:01:35]} 23. d4 {[%clk 0:00:57.8]} 23... Bf6
{[%clk 0:01:23.2]} 24. R6xg4 {[%clk 0:00:44.8]} 24... hxg4 {[%clk 0:01:22]} 25.
Bc4 {[%clk 0:00:45.4]} 25... gxf3 {[%clk 0:01:18.1]} 26. Bxd5+ {[%clk
0:00:45.2]} 26... Rf7 {[%clk 0:01:14.7]} 27. Rg3 {[%clk 0:00:37.3]} 27... Bxd4
{[%clk 0:00:37.8]} 28. Rxf3 {[%clk 0:00:37.4]} 28... Rf8 {[%clk 0:00:35.6]} 29.
Bxa5 {[%clk 0:00:33.6]} 29... g6 {[%clk 0:00:29.2]} 30. Bd2 {[%clk 0:00:24.7]}
30... Kg7 {[%clk 0:00:29.3]} 31. Rxf7+ {[%clk 0:00:23.9]} 31... Rxf7 {[%clk
0:00:30.2]} 32. Bxf7 {[%clk 0:00:24.2]} 32... Kxf7 {[%clk 0:00:30.6]} 33. f3
{[%clk 0:00:23.5]} 33... Ke6 {[%clk 0:00:30.4]} 34. c3 {[%clk 0:00:23.3]} 34...
Bg1 {[%clk 0:00:28.8]} 35. Kc2 {[%clk 0:00:23.2]} 35... c4 {[%clk 0:00:28.5]}
36. Kd1 {[%clk 0:00:19.6]} 36... d5 {[%clk 0:00:26.5]} 37. Kc2 {[%clk
0:00:19.3]} 37... Ke5 {[%clk 0:00:24.6]} 38. b4 {[%clk 0:00:18.8]} 38... Ba7
{[%clk 0:00:20.1]} 39. Kd1 {[%clk 0:00:18.4]} 39... d4 {[%clk 0:00:19.4]} 40.
cxd4+ {[%clk 0:00:18.4]} 40... Kxd4 {[%clk 0:00:19.3]} 41. Kc2 {[%clk
0:00:18.9]} 41... Kd5 {[%clk 0:00:19.8]} 42. Bc3 {[%clk 0:00:17.8]} 42... Bb8
{[%clk 0:00:19.7]} 43. b5 {[%clk 0:00:17.1]} 43... Bd6 {[%clk 0:00:16.1]} 44.
Be1 {[%clk 0:00:15.7]} 44... Bc7 {[%clk 0:00:16.3]} 45. Bf2 {[%clk 0:00:15.4]}
45... Ba5 {[%clk 0:00:15.9]} 46. Be3 {[%clk 0:00:15.2]} 46... Bc7 {[%clk
0:00:15.6]} 47. Bd2 {[%clk 0:00:12.2]} 47... Bd6 {[%clk 0:00:14.8]} 48. a5
{[%clk 0:00:09.5]} 48... Kc5 {[%clk 0:00:14.9]} 49. a6 {[%clk 0:00:09.7]} 49...
bxa6 {[%clk 0:00:14.6]} 50. bxa6 {[%clk 0:00:09.8]} 50... Kb6 {[%clk 0:00:14.7]}
51. Kc3 {[%clk 0:00:09.8]} 51... Kxa6 {[%clk 0:00:15]} 52. Kxc4 {[%clk
0:00:10.2]} 52... Kb7 {[%clk 0:00:15]} 53. Kd5 {[%clk 0:00:10.4]} 53... Bh2
{[%clk 0:00:15.5]} 54. Ke6 {[%clk 0:00:10.3]} 54... Kc6 {[%clk 0:00:15.9]} 55.
Kf7 {[%clk 0:00:10]} 55... Kd5 {[%clk 0:00:16.2]} 56. Kxg6 {[%clk 0:00:10.5]}
56... Kd4 {[%clk 0:00:16.5]} 57. Kf5 {[%clk 0:00:09.3]} 57... Bc7 {[%clk
0:00:13.8]} 58. Bf4 {[%clk 0:00:08.3]} 58... Bd8 {[%clk 0:00:14.2]} 59. Be5+
{[%clk 0:00:07.6]} 59... Ke3 {[%clk 0:00:12.2]} 60. f4 {[%clk 0:00:06.9]} 60...
Kf3 {[%clk 0:00:12.8]} 61. Ke6 {[%clk 0:00:05.8]} 61... Ke4 {[%clk 0:00:13.1]}
62. f5 {[%clk 0:00:06.1]} 62... Bh4 {[%clk 0:00:13.2]} 63. Bf6 {[%clk
0:00:05.8]} 63... Be1 {[%clk 0:00:13.2]} 64. Be5 {[%clk 0:00:04.2]} 64... Bh4
{[%clk 0:00:13.3]} 65. Bb2 {[%clk 0:00:04.6]} 65... Bd8 {[%clk 0:00:12.3]} 66.
Bc1 {[%clk 0:00:04.4]} 66... Bh4 {[%clk 0:00:10]} 67. Bh6 {[%clk 0:00:04.1]}
67... Bd8 {[%clk 0:00:09.4]} 68. Bg7 {[%clk 0:00:04.7]} 68... Bh4 {[%clk
0:00:09.7]} 69. Bf6 {[%clk 0:00:05.2]} 69... Be1 {[%clk 0:00:09.9]} 70. Bg5
{[%clk 0:00:05.7]} 70... Bc3 {[%clk 0:00:09.8]} 71. Bh4 {[%clk 0:00:06.2]} 71...
Bd4 {[%clk 0:00:09.4]} 72. Bg3 {[%clk 0:00:06.7]} 72... Bc3 {[%clk 0:00:09.5]}
73. Bf2 {[%clk 0:00:07.1]} 73... Bb2 {[%clk 0:00:09.4]} 74. Bc5 {[%clk
0:00:07.2]} 74... Bc3 {[%clk 0:00:09.7]} 75. Be7 {[%clk 0:00:07.8]} 75... Bd4
{[%clk 0:00:10.1]} 76. Bf6 {[%clk 0:00:08.1]} 76... Bf2 {[%clk 0:00:10.4]} 77.
Bc3 {[%clk 0:00:08.2]} 77... Bh4 {[%clk 0:00:10.5]} 78. Ba5 {[%clk 0:00:08.7]}
78... Bg5 {[%clk 0:00:10.2]} 79. Bb4 {[%clk 0:00:09.1]} 79... Bh4 {[%clk
0:00:10.6]} 80. Be7 {[%clk 0:00:09.3]} 80... Bxe7 {[%clk 0:00:09.4]} 81. Kxe7
{[%clk 0:00:09.6]} 81... Kxf5 {[%clk 0:00:09.6]} 1/2-1/2

[Event "*** SCC Grand Prix: Titled Tuesday Blitz"]
[Site "Chess.com"]
[Date "2020.07.07"]
[Round "6"]
[White "wonderfultime"]
[Black "aleksandrovaleksei"]
[Result "0-1"]
[WhiteElo "2979"]
[BlackElo "2670"]
[TimeControl "180+1"]
[EndTime "11:08:11 PDT"]
[Termination "aleksandrovaleksei won by resignation"]

1. d4 {[%clk 0:03:00]} 1... Nf6 {[%clk 0:02:59.4]} 2. Nf3 {[%clk 0:02:59.2]}
2... e6 {[%clk 0:02:58.9]} 3. Bf4 {[%clk 0:02:59.6]} 3... c5 {[%clk 0:02:58.6]}
4. c3 {[%clk 0:02:59.7]} 4... d5 {[%clk 0:02:58.4]} 5. e3 {[%clk 0:03:00.3]}
5... Bd6 {[%clk 0:02:58.6]} 6. Bg3 {[%clk 0:03:00.8]} 6... Qc7 {[%clk
0:02:58.5]} 7. Nbd2 {[%clk 0:03:00.6]} 7... Nbd7 {[%clk 0:02:58.6]} 8. Bd3
{[%clk 0:03:00.8]} 8... e5 {[%clk 0:02:58.3]} 9. dxe5 {[%clk 0:03:01]} 9... Nxe5
{[%clk 0:02:58.2]} 10. Nxe5 {[%clk 0:03:01.9]} 10... Bxe5 {[%clk 0:02:58.6]} 11.
O-O {[%clk 0:03:02.8]} 11... O-O {[%clk 0:02:58.3]} 12. Re1 {[%clk 0:03:03.2]}
12... b6 {[%clk 0:02:50.5]} 13. a4 {[%clk 0:03:02.9]} 13... Bb7 {[%clk
0:02:47.6]} 14. a5 {[%clk 0:03:02.7]} 14... Rad8 {[%clk 0:02:46.6]} 15. Qa4
{[%clk 0:02:59.7]} 15... Bxg3 {[%clk 0:02:40.5]} 16. hxg3 {[%clk 0:02:55.9]}
16... Rfe8 {[%clk 0:02:29.4]} 17. Nf3 {[%clk 0:02:52.2]} 17... h6 {[%clk
0:02:21.4]} 18. Red1 {[%clk 0:02:50.8]} 18... Ne4 {[%clk 0:02:11.3]} 19. Bb5
{[%clk 0:02:20.5]} 19... Rf8 {[%clk 0:01:59.6]} 20. Qc2 {[%clk 0:02:11.3]} 20...
g6 {[%clk 0:01:45.6]} 21. axb6 {[%clk 0:02:06.8]} 21... axb6 {[%clk 0:01:45.2]}
22. Ra7 {[%clk 0:02:07.3]} 22... Qb8 {[%clk 0:01:40.9]} 23. Rda1 {[%clk
0:02:01.6]} 23... h5 {[%clk 0:01:26.8]} 24. Bf1 {[%clk 0:01:59.7]} 24... Rfe8
{[%clk 0:01:22.2]} 25. Qb3 {[%clk 0:01:59]} 25... Re6 {[%clk 0:01:19.4]} 26. Qc2
{[%clk 0:01:38.3]} 26... Rf6 {[%clk 0:01:13.2]} 27. Bd3 {[%clk 0:01:33.5]} 27...
Re6 {[%clk 0:01:01.9]} 28. Bxe4 {[%clk 0:01:31.9]} 28... dxe4 {[%clk 0:01:00.9]}
29. Ng5 {[%clk 0:01:32.4]} 29... Re5 {[%clk 0:00:59]} 30. Nh3 {[%clk 0:01:31.2]}
30... Red5 {[%clk 0:00:56.9]} 31. Nf4 {[%clk 0:01:29.8]} 31... R5d6 {[%clk
0:00:55.5]} 32. Qb3 {[%clk 0:01:24.2]} 32... Kg7 {[%clk 0:00:54.2]} 33. Qc4
{[%clk 0:01:10.9]} 33... R8d7 {[%clk 0:00:50.7]} 34. R7a2 {[%clk 0:01:05.5]}
34... Qd8 {[%clk 0:00:50.4]} 35. b4 {[%clk 0:01:02.7]} 35... cxb4 {[%clk
0:00:45.2]} 36. cxb4 {[%clk 0:01:03.6]} 36... h4 {[%clk 0:00:45.2]} 37. Qc3+
{[%clk 0:01:02.2]} 37... Kh7 {[%clk 0:00:44.6]} 38. Rf1 {[%clk 0:00:40.2]} 38...
Qg5 {[%clk 0:00:42.1]} 39. Nh3 {[%clk 0:00:38.1]} 39... Qg4 {[%clk 0:00:39.4]}
40. gxh4 {[%clk 0:00:35.7]} 40... Qxh4 {[%clk 0:00:38.9]} 41. Qe5 {[%clk
0:00:36]} 41... Rd5 {[%clk 0:00:36.7]} 42. Qh2 {[%clk 0:00:33.1]} 42... Kg7
{[%clk 0:00:35.4]} 43. Raa1 {[%clk 0:00:31.1]} 43... Qg4 {[%clk 0:00:28.8]} 44.
Qf4 {[%clk 0:00:29.8]} 44... Qxf4 {[%clk 0:00:19]} 45. Nxf4 {[%clk 0:00:30.7]}
45... Rd2 {[%clk 0:00:17.5]} 46. Rfc1 {[%clk 0:00:27.8]} 46... Kh6 {[%clk
0:00:15.7]} 47. Rab1 {[%clk 0:00:20.4]} 47... g5 {[%clk 0:00:15.2]} 48. Nh3
{[%clk 0:00:20.9]} 48... f6 {[%clk 0:00:15]} 49. b5 {[%clk 0:00:19.4]} 49... Kg6
{[%clk 0:00:14.7]} 50. Rb4 {[%clk 0:00:16.8]} 50... Ra2 {[%clk 0:00:11.9]} 51.
Rbc4 {[%clk 0:00:14.4]} 51... Rb2 {[%clk 0:00:10.6]} 52. Rc7 {[%clk 0:00:14]}
52... Rxc7 {[%clk 0:00:10.6]} 53. Rxc7 {[%clk 0:00:14.9]} 53... Bd5 {[%clk
0:00:10.7]} 54. Kh2 {[%clk 0:00:11.1]} 54... Rxb5 {[%clk 0:00:08.8]} 55. Ng1
{[%clk 0:00:11.7]} 55... Rb2 {[%clk 0:00:07.7]} 56. Kg3 {[%clk 0:00:12.2]} 56...
b5 {[%clk 0:00:07.4]} 57. Rc5 {[%clk 0:00:12.3]} 57... Be6 {[%clk 0:00:07.1]}
58. f3 {[%clk 0:00:12.3]} 58... exf3 {[%clk 0:00:05.2]} 59. Nxf3 {[%clk
0:00:13]} 59... Bc4 {[%clk 0:00:04]} 60. Nh2 {[%clk 0:00:09]} 60... Bd3 {[%clk
0:00:02.6]} 61. Rc6 {[%clk 0:00:09.4]} 61... Rxg2+ {[%clk 0:00:01.3]} 62. Kh3
{[%clk 0:00:09.2]} 62... Bf5+ {[%clk 0:00:01.2]} 63. Kxg2 {[%clk 0:00:07.9]}
63... Be4+ {[%clk 0:00:01.5]} 64. Kg3 {[%clk 0:00:08.8]} 64... Bxc6 {[%clk
0:00:02.1]} 65. Nf1 {[%clk 0:00:09.7]} 65... b4 {[%clk 0:00:01.7]} 66. Nd2
{[%clk 0:00:10.6]} 66... Bd5 {[%clk 0:00:01.2]} 67. e4 {[%clk 0:00:11.5]} 67...
Bf7 {[%clk 0:00:02]} 68. Kf3 {[%clk 0:00:11.7]} 68... b3 {[%clk 0:00:02.9]} 69.
Ke3 {[%clk 0:00:11.6]} 69... b2 {[%clk 0:00:03.8]} 70. Kd3 {[%clk 0:00:12.3]}
70... Ba2 {[%clk 0:00:04.2]} 71. Kc2 {[%clk 0:00:12.8]} 71... b1=Q+ {[%clk
0:00:04.9]} 72. Nxb1 {[%clk 0:00:13.5]} 72... Bxb1+ {[%clk 0:00:05.8]} 73. Kxb1
{[%clk 0:00:14.4]} 73... Kf7 {[%clk 0:00:06.2]} 74. Kc2 {[%clk 0:00:15.3]} 74...
Ke6 {[%clk 0:00:06.9]} 75. Kd3 {[%clk 0:00:16.1]} 75... Ke5 {[%clk 0:00:07.5]}
76. Ke3 {[%clk 0:00:17]} 76... g4 {[%clk 0:00:07.9]} 77. Kd3 {[%clk 0:00:17.5]}
77... Kf4 {[%clk 0:00:08.2]} 78. Kd4 {[%clk 0:00:17.8]} 78... g3 {[%clk
0:00:08.6]} 79. Kd5 {[%clk 0:00:18.7]} 79... g2 {[%clk 0:00:08.3]} 80. e5 {[%clk
0:00:19.6]} 80... fxe5 {[%clk 0:00:08.1]} 0-1

[Event "*** SCC Grand Prix: Titled Tuesday Blitz"]
[Site "Chess.com"]
[Date "2020.07.07"]
[Round "6"]
[White "malakismayil"]
[Black "Nara_Kh"]
[Result "1-0"]
[WhiteElo "2141"]
[BlackElo "2279"]
[TimeControl "180+1"]
[EndTime "11:08:19 PDT"]
[Termination "malakismayil won by checkmate"]

1. e4 {[%clk 0:03:00.9]} 1... c5 {[%clk 0:02:51.7]} 2. Nf3 {[%clk 0:03:00]} 2...
d6 {[%clk 0:02:51.4]} 3. d4 {[%clk 0:02:58.8]} 3... Nf6 {[%clk 0:02:51.1]} 4.
Nc3 {[%clk 0:02:57.5]} 4... cxd4 {[%clk 0:02:51]} 5. Nxd4 {[%clk 0:02:58.4]}
5... a6 {[%clk 0:02:51.1]} 6. Bc4 {[%clk 0:02:58.2]} 6... e6 {[%clk 0:02:49.3]}
7. Be3 {[%clk 0:02:58.1]} 7... b5 {[%clk 0:02:44.6]} 8. Bd3 {[%clk 0:02:58.1]}
8... Be7 {[%clk 0:02:34.7]} 9. a3 {[%clk 0:02:56.6]} 9... Qc7 {[%clk 0:02:30.4]}
10. O-O {[%clk 0:02:50.7]} 10... O-O {[%clk 0:02:28.9]} 11. Qe2 {[%clk
0:02:49.4]} 11... Nc6 {[%clk 0:02:21.7]} 12. Nxc6 {[%clk 0:02:42.1]} 12... Qxc6
{[%clk 0:02:20.5]} 13. h3 {[%clk 0:02:41.8]} 13... Bb7 {[%clk 0:02:16.6]} 14. f4
{[%clk 0:02:41.1]} 14... Nd7 {[%clk 0:02:04.3]} 15. Rae1 {[%clk 0:02:38.9]}
15... Bf6 {[%clk 0:01:52]} 16. Bd2 {[%clk 0:02:38.5]} 16... Bd4+ {[%clk
0:01:39.6]} 17. Kh1 {[%clk 0:02:36.2]} 17... Nc5 {[%clk 0:01:38.1]} 18. f5
{[%clk 0:02:22.3]} 18... Nd7 {[%clk 0:01:05.7]} 19. Qg4 {[%clk 0:01:49.5]} 19...
exf5 {[%clk 0:00:39.2]} 20. Rxf5 {[%clk 0:01:42.6]} 20... Ne5 {[%clk 0:00:27.4]}
21. Qg3 {[%clk 0:01:41.2]} 21... Ng6 {[%clk 0:00:27.4]} 22. Nd5 {[%clk
0:01:38.9]} 22... Bc8 {[%clk 0:00:24.7]} 23. Rg5 {[%clk 0:01:33.8]} 23... Be5
{[%clk 0:00:22.4]} 24. Qf2 {[%clk 0:01:17.3]} 24... Kh8 {[%clk 0:00:22.5]} 25.
c3 {[%clk 0:01:11.1]} 25... Be6 {[%clk 0:00:22.1]} 26. Ne3 {[%clk 0:00:40.9]}
26... Nf4 {[%clk 0:00:15.5]} 27. Bb1 {[%clk 0:00:38.5]} 27... Rae8 {[%clk
0:00:14.8]} 28. Nf5 {[%clk 0:00:31.7]} 28... Bxf5 {[%clk 0:00:15]} 29. Rxf5
{[%clk 0:00:32.6]} 29... Ng6 {[%clk 0:00:09]} 30. Rxf7 {[%clk 0:00:28.1]} 30...
Rxf7 {[%clk 0:00:09.4]} 31. Qxf7 {[%clk 0:00:28.3]} 31... Rf8 {[%clk 0:00:10]}
32. Qd5 {[%clk 0:00:24.5]} 32... Qb6 {[%clk 0:00:10.3]} 33. Be3 {[%clk
0:00:22.7]} 33... Qd8 {[%clk 0:00:10.5]} 34. Qd2 {[%clk 0:00:18.4]} 34... Qh4
{[%clk 0:00:10]} 35. Bg1 {[%clk 0:00:12.6]} 35... Bf4 {[%clk 0:00:09.2]} 36. Qe2
{[%clk 0:00:11.7]} 36... Ne5 {[%clk 0:00:08.2]} 37. Rf1 {[%clk 0:00:11.6]} 37...
Qe7 {[%clk 0:00:03.8]} 38. Bh2 {[%clk 0:00:09.3]} 38... Bxh2 {[%clk 0:00:02.8]}
39. Rxf8+ {[%clk 0:00:10.2]} 39... Qxf8 {[%clk 0:00:03.1]} 40. Kxh2 {[%clk
0:00:11.1]} 40... Qf4+ {[%clk 0:00:03.7]} 41. Kh1 {[%clk 0:00:11]} 41... Qc1+
{[%clk 0:00:03.8]} 42. Kh2 {[%clk 0:00:11.4]} 42... Qxb1 {[%clk 0:00:04.4]} 43.
Qf2 {[%clk 0:00:11.9]} 43... Kg8 {[%clk 0:00:02.2]} 44. Qd4 {[%clk 0:00:10.3]}
44... Qe1 {[%clk 0:00:01.8]} 45. Qd5+ {[%clk 0:00:08.6]} 45... Kf8 {[%clk
0:00:01.2]} 46. Qxd6+ {[%clk 0:00:08.4]} 46... Kf7 {[%clk 0:00:01.7]} 47. Qxe5
{[%clk 0:00:09]} 47... Qe2 {[%clk 0:00:01.9]} 48. Qf4+ {[%clk 0:00:08.1]} 48...
Ke6 {[%clk 0:00:02.1]} 49. Qf5+ {[%clk 0:00:07.9]} 49... Ke7 {[%clk 0:00:02.2]}
50. Qe5+ {[%clk 0:00:07.8]} 50... Kf7 {[%clk 0:00:02.8]} 51. Qf5+ {[%clk
0:00:07.6]} 51... Ke7 {[%clk 0:00:03.3]} 52. Qxh7 {[%clk 0:00:07.3]} 52... Qe3
{[%clk 0:00:02.8]} 53. Qxg7+ {[%clk 0:00:07.3]} 53... Ke6 {[%clk 0:00:03.7]} 54.
Qg4+ {[%clk 0:00:07.2]} 54... Ke7 {[%clk 0:00:04.1]} 55. Qh4+ {[%clk 0:00:06.7]}
55... Ke6 {[%clk 0:00:03.1]} 56. Qg4+ {[%clk 0:00:06.4]} 56... Ke7 {[%clk
0:00:03.4]} 57. h4 {[%clk 0:00:06.7]} 57... Qh6 {[%clk 0:00:03.1]} 58. Qg5+
{[%clk 0:00:06.3]} 58... Qxg5 {[%clk 0:00:02.7]} 59. hxg5 {[%clk 0:00:07.2]}
59... Kf7 {[%clk 0:00:03.2]} 60. Kg3 {[%clk 0:00:07.5]} 60... Kg6 {[%clk
0:00:04.1]} 61. Kf4 {[%clk 0:00:08.4]} 61... a5 {[%clk 0:00:04.3]} 62. g4 {[%clk
0:00:09.3]} 62... a4 {[%clk 0:00:04.6]} 63. Ke5 {[%clk 0:00:08.2]} 63... Kxg5
{[%clk 0:00:04.4]} 64. Kd6 {[%clk 0:00:09.1]} 64... Kxg4 {[%clk 0:00:04.8]} 65.
e5 {[%clk 0:00:10]} 65... Kf4 {[%clk 0:00:05.5]} 66. e6 {[%clk 0:00:10.5]} 66...
Ke3 {[%clk 0:00:06.4]} 67. e7 {[%clk 0:00:10.7]} 67... Kd2 {[%clk 0:00:07.3]}
68. e8=Q {[%clk 0:00:11.2]} 68... Kc2 {[%clk 0:00:08.2]} 69. Qxb5 {[%clk
0:00:11.4]} 69... Kb1 {[%clk 0:00:07.6]} 70. c4 {[%clk 0:00:11.3]} 70... Ka2
{[%clk 0:00:07.6]} 71. c5 {[%clk 0:00:11.6]} 71... Ka1 {[%clk 0:00:08.2]} 72. c6
{[%clk 0:00:12.2]} 72... Kb1 {[%clk 0:00:08.8]} 73. c7 {[%clk 0:00:12.6]} 73...
Ka1 {[%clk 0:00:09.7]} 74. c8=Q {[%clk 0:00:12.2]} 74... Ka2 {[%clk 0:00:10.6]}
75. Qcc4+ {[%clk 0:00:12.1]} 75... Ka1 {[%clk 0:00:11]} 76. Qf1+ {[%clk
0:00:11.5]} 76... Ka2 {[%clk 0:00:10.7]} 77. Qbc4+ {[%clk 0:00:11.6]} 77... Kxb2
{[%clk 0:00:10.9]} 78. Qfe2+ {[%clk 0:00:12.3]} 78... Ka1 {[%clk 0:00:11.3]} 79.
Qc1# {[%clk 0:00:11.6]} 1-0